bitfinex/quotes_ETHUSD_20240817
["timestamp","ask_amount","ask_price","bid_price","bid_amount"]
[1723937051750,1.20444758,2615.7,2615.6,2.90317893]
[1723937052253,1.60662406,2615.8,2615.6,2.90317893]
[1723937052557,1.20449024,2615.7,2615.6,2.90317893]
[1723937052915,1.60662406,2615.8,2615.6,2.90317893]
[1723937054331,1.60662406,2615.7,2615.6,2.90317893]
[1723937056359,2.00708449,2615.8,2615.6,2.90317893]
[1723937056360,1.60662406,2615.8,2615.6,2.90317893]
[1723937056673,1.20487138,2615.7,2615.6,2.90317893]
[1723937057321,1.60662406,2615.8,2615.6,2.90317893]
[1723937057940,4.33163492,2615.8,2615.6,0.03576893]
[1723937058145,2.92262406,2615.7,2615.4,2.86761]
[1723937058421,1.20517977,2615.5,2615.4,2.86761]
[1723937058849,1.20517977,2615.5,2615.4,2.90338001]
[1723937061159,1.20517977,2615.5,2615.4,0.03577001]
[1723937061461,2.92262406,2615.5,2615.4,0.03577001]
[1723937062765,2.92262406,2615.5,2615.3,3.0]
[1723937062932,1.2051303,2615.4,2615.3,3.0]
[1723937063129,1.2051303,2615.4,2615.3,5.86773]
[1723937069083,1.2051303,2615.4,2615.2,2.86779]
[1723937069084,4.70415234,2615.4,2615.0,2.86805]
[1723937069370,1.20505921,2615.1,2615.0,2.86805]
[1723937070330,1.20505921,2615.1,2615.0,8.31455]
[1723937070941,1.20505921,2615.2,2615.0,8.31455]
[1723937071361,1.20505921,2615.1,2615.0,8.31455]
[1723937072161,1.20505921,2615.2,2615.0,8.31455]
[1723937072475,1.20505921,2615.2,2615.1,2.86795]
[1723937075617,1.20505921,2615.2,2615.1,2.90387471]
[1723937078216,1.20505921,2615.3,2615.1,2.90387471]
[1723937078587,1.20505921,2615.3,2615.1,2.86795]
[1723937083164,21.15505921,2615.4,2615.1,2.86795]
[1723937084183,21.15505921,2615.4,2615.3,2.86773]
[1723937084520,19.95,2615.4,2615.3,8.10056]
[1723937085990,1.20505921,2615.5,2615.4,5.73526]
[1723937086317,1.20505921,2615.6,2615.5,8.11174]
[1723937086624,23.5636027,2616.3,2616.1,2.86686]
[1723937086819,1.60674562,2616.3,2616.1,2.86686]
[1723937087120,1.60674562,2616.3,2616.2,0.03459902]
[1723937087416,2.92274562,2616.3,2616.2,0.03459902]
[1723937087624,5.81081735,2616.3,2616.2,0.03459902]
[1723937088071,5.81081735,2616.3,2615.9,2.86706]
[1723937088278,1.60525422,2616.2,2615.9,2.86706]
[1723937088548,1.60525422,2616.2,2616.0,2.90146931]
[1723937089340,2.92125422,2616.3,2616.0,2.90146931]
[1723937089647,4.57552842,2616.3,2616.0,2.86697]
[1723937091253,2.92125422,2616.3,2616.0,2.86697]
[1723937091413,2.92125422,2616.3,2616.1,2.86685]
[1723937092418,1.316,2616.3,2616.1,2.86685]
[1723937092635,2.92125422,2616.3,2616.1,2.86685]
[1723937093113,1.316,2616.3,2616.1,2.86685]
[1723937093441,1.316,2616.3,2615.9,2.86701]
[1723937093620,2.2678,2616.2,2615.9,2.86701]
[1723937094242,2.2678,2616.2,2616.0,0.03449551]
[1723937094444,3.6543479,2616.3,2616.0,0.03449551]
[1723937094636,2.04909368,2616.3,2616.0,0.03449551]
[1723937094832,3.6543479,2616.3,2615.8,2.86717]
[1723937095154,2.04909368,2616.3,2615.9,0.0345046]
[1723937095518,2.04909368,2616.3,2615.9,2.86707]
[1723937095922,21.99909368,2616.3,2615.9,2.86707]
[1723937096151,0.6195505,2616.2,2615.9,2.86707]
[1723937096311,0.6195505,2616.2,2616.0,0.03449551]
[1723937097241,21.99909368,2616.3,2616.0,2.90145551]
[1723937098751,21.99909368,2616.3,2616.0,0.03449551]
[1723937103712,1.316,2616.1,2616.0,0.03449551]
[1723937104013,1.316,2616.1,2615.8,5.86717]
[1723937104212,19.95,2616.3,2616.0,0.03438144]
[1723937104510,23.21305795,2616.3,2616.0,2.86693]
[1723937104947,23.21305795,2616.3,2616.1,0.03438376]
[1723937108036,23.21305795,2616.3,2616.0,2.86693]
[1723937108447,23.21305795,2616.3,2616.1,0.03437996]
[1723937108653,1.28458389,2616.2,2616.1,0.03437996]
[1723937108830,1.28458389,2616.2,2616.0,2.86693]
[1723937109183,1.28458389,2616.2,2616.1,0.03437996]
[1723937109684,1.28458389,2616.2,2616.0,2.86693]
[1723937110026,1.28458389,2616.2,2616.1,0.03437996]
[1723937110841,1.28458389,2616.2,2616.0,2.86693]
[1723937111336,1.28458389,2616.2,2616.1,0.03437996]
[1723937112039,1.28458389,2616.2,2616.0,2.86693]
[1723937112245,23.21305795,2616.3,2616.1,0.03437996]
[1723937112628,23.21305795,2616.3,2616.0,2.86693]
[1723937112929,23.21305795,2616.3,2616.1,0.03438376]
[1723937113364,23.21305795,2616.3,2616.0,2.86693]
[1723937113533,23.21305795,2616.3,2616.2,0.03437467]
[1723937113735,23.21305795,2616.3,2616.0,2.86693]
[1723937114072,23.21305795,2616.3,2616.1,0.03438376]
[1723937114567,23.21305795,2616.3,2616.0,2.86693]
[1723937114976,23.21305795,2616.3,2616.2,0.03437467]
[1723937115131,23.21305795,2616.3,2616.1,0.03438376]
[1723937115334,23.21305795,2616.3,2616.0,2.86693]
[1723937115776,23.21305795,2616.3,2616.1,0.03438376]
[1723937116065,0.71510745,2616.2,2616.0,2.86693]
[1723937116429,0.71510745,2616.2,2616.1,0.03438376]
[1723937116635,0.71510745,2616.2,2616.0,2.86693]
[1723937116831,23.21305795,2616.3,2616.1,0.03438376]
[1723937117039,23.21305795,2616.3,2616.0,2.86693]
[1723937117233,23.21305795,2616.3,2616.2,0.03437467]
[1723937117458,23.21305795,2616.3,2616.0,2.86693]
[1723937117856,23.21305795,2616.3,2616.1,0.03438376]
[1723937118066,2.5572458,2616.2,2616.1,0.03438376]
[1723937118644,2.5572458,2616.2,2616.0,2.86693]
[1723937118852,2.5572458,2616.2,2616.1,0.03438376]
[1723937119167,23.21305795,2616.3,2616.0,2.86693]
[1723937120179,23.21305795,2616.3,2616.1,0.03438376]
[1723937122370,21.266,2616.3,2616.1,0.03438376]
[1723937123751,21.266,2616.3,2616.1,2.90122376]
[1723937124267,19.95,2616.3,2616.2,8.094]
[1723937124785,19.95,2616.3,2616.2,8.12835182]
[1723937125354,19.95,2616.3,2616.2,5.26160182]
[1723937125777,22.87125422,2616.5,2616.2,5.26160182]
[1723937126038,21.266,2616.5,2616.2,5.22725]
[1723937126200,22.87125422,2616.5,2616.3,0.03432183]
[1723937126352,22.87125422,2616.5,2616.2,2.86675]
[1723937126557,22.87125422,2616.5,2616.3,0.03432183]
[1723937126801,22.87125422,2616.5,2616.2,2.86675]
[1723937126997,22.87125422,2616.5,2616.4,0.03431274]
[1723937127300,22.87125422,2616.5,2616.2,2.86675]
[1723937127600,22.87125422,2616.5,2616.3,0.03432183]
[1723937127760,1.2696003,2616.4,2616.1,2.86685]
[1723937127962,22.87125422,2616.5,2616.4,0.03431274]
[1723937128163,22.87125422,2616.5,2616.1,2.86685]
[1723937128401,22.87125422,2616.5,2616.4,0.03431274]
[1723937128554,22.87125422,2616.5,2616.1,2.86685]
[1723937128755,22.87125422,2616.5,2616.2,0.03433092]
[1723937128987,26.32556297,2616.5,2616.2,0.03433092]
[1723937129295,1.60525422,2616.4,2616.2,0.03433092]
[1723937129667,1.60525422,2616.4,2616.1,2.86685]
[1723937129876,1.60525422,2616.4,2616.0,5.31924]
[1723937130076,1.60525422,2616.4,2616.2,0.03433092]
[1723937130292,1.60525422,2616.4,2616.1,3.03434001]
[1723937130493,1.60525422,2616.3,2616.1,3.0]
[1723937130694,1.60525422,2616.4,2616.1,3.0]
[1723937131266,1.60525422,2616.3,2616.2,0.03434042]
[1723937131808,21.55525422,2616.3,2616.1,5.86686]
[1723937131981,21.55525422,2616.3,2616.2,0.0741224]
[1723937134409,21.55525422,2616.3,2616.1,5.86686]
[1723937134737,21.55525422,2616.3,2616.2,0.0740844]
[1723937134888,21.55657463,2616.3,2616.2,0.0740844]
[1723937135221,21.55657463,2616.3,2616.1,5.86686]
[1723937135514,21.55657463,2616.3,2616.2,0.0740844]
[1723937135880,19.95,2616.3,2616.1,5.86686]
[1723937136082,1.60657995,2616.2,2616.1,2.86686]
[1723937136398,22.87257995,2616.3,2616.1,2.86686]
[1723937136604,1.60657995,2616.2,2616.1,2.86686]
[1723937137352,22.87257995,2616.3,2616.1,2.86686]
[1723937137627,2.92257995,2616.3,2616.1,2.86686]
[1723937137799,1.60657995,2616.2,2616.1,2.86686]
[1723937138187,2.92257995,2616.3,2616.1,2.86686]
[1723937138593,1.60657995,2616.2,2616.1,2.86686]
[1723937140328,2.92257995,2616.3,2616.1,2.86686]
[1723937140820,1.60657995,2616.2,2616.1,2.86686]
[1723937141697,1.60657995,2616.3,2616.2,2.86675]
[1723937142009,21.55657995,2616.4,2616.2,2.86675]
[1723937144330,1.60657995,2616.3,2616.2,2.86675]
[1723937144694,21.55657995,2616.4,2616.2,2.86675]
[1723937147350,21.55657995,2616.4,2616.3,2.86664]
[1723937147558,19.95,2616.4,2616.3,5.18754]
[1723937147741,19.95,2616.4,2616.3,5.26161949]
[1723937149557,1.60657995,2616.5,2616.3,5.26161949]
[1723937150654,1.60657995,2616.5,2616.4,2.86653]
[1723937150836,1.60657995,2616.5,2616.4,2.94055897]
[1723937151364,3.32341397,2616.6,2616.4,2.94055897]
[1723937153642,1.6059481,2616.5,2616.4,2.94055897]
[1723937155463,1.6059481,2616.5,2616.4,5.26145897]
[1723937159907,1.6059481,2616.5,2616.4,8.12798897]
[1723937160112,1.6059481,2616.6,2616.5,2.86642]
[1723937160483,1.6059481,2616.6,2616.5,2.94036996]
[1723937163185,2.9219481,2616.6,2616.5,0.07394996]
[1723937163388,3.32327039,2616.6,2616.5,0.07394996]
[1723937163886,1.316,2616.6,2616.5,0.07394996]
[1723937164082,3.32327039,2616.6,2616.5,0.07394996]
[1723937165523,1.316,2616.6,2616.5,0.07394996]
[1723937166017,3.32327039,2616.6,2616.5,0.07394996]
[1723937166218,1.316,2616.6,2616.5,0.07394996]
[1723937166434,3.32361897,2616.6,2616.5,0.07394996]
[1723937166591,1.316,2616.6,2616.5,0.07394996]
[1723937168230,3.32361897,2616.6,2616.5,0.07394996]
[1723937168918,5.65098087,2616.6,2616.5,0.07394996]
[1723937169432,3.6433619,2616.6,2616.2,2.86671]
[1723937169635,2.92236034,2616.4,2616.2,2.86671]
[1723937169927,2.92236034,2616.4,2616.3,0.07394457]
[1723937170232,2.92236034,2616.4,2616.2,2.86671]
[1723937170533,1.60636034,2616.3,2616.0,2.86691]
[1723937170743,6.4316177,2616.4,2616.0,2.86691]
[1723937170744,4.04987632,2616.4,2616.0,2.86691]
[1723937170893,1.6064902,2616.2,2616.1,2.94082579]
[1723937171094,3.32410905,2616.4,2616.2,2.86675]
[1723937171095,1.6064902,2616.3,2616.2,2.86675]
[1723937171442,1.6064902,2616.3,2616.2,2.94073939]
[1723937171738,1.6064902,2616.4,2616.2,2.94073939]
[1723937173534,1.6064902,2616.3,2616.2,2.94073939]
[1723937174193,1.6064902,2616.4,2616.2,2.94073939]
[1723937174622,1.6064902,2616.3,2616.2,2.94073939]
[1723937174825,1.6064902,2616.4,2616.2,2.94073939]
[1723937175407,1.6064902,2616.3,2616.2,2.94073939]
[1723937178002,1.6064902,2616.4,2616.2,2.94073939]
[1723937178207,1.6064902,2616.3,2616.2,2.94073939]
[1723937179640,1.6064902,2616.4,2616.2,2.94073939]
[1723937179951,1.6064902,2616.3,2616.2,2.94073939]
[1723937180801,1.6064902,2616.4,2616.2,2.94073939]
[1723937181045,2.00810905,2616.5,2616.3,2.86664]
[1723937181221,1.6064418,2616.4,2616.3,8.07608]
[1723937181426,21.95810905,2616.6,2616.5,2.86642]
[1723937182024,21.95810905,2616.6,2616.5,2.94040226]
[1723937182443,1.60643417,2616.6,2616.5,2.94040226]
[1723937184610,2.00810905,2616.7,2616.5,2.94040226]
[1723937184611,1.60643417,2616.7,2616.5,2.94040226]
[1723937184925,1.60643417,2616.6,2616.5,2.94040226]
[1723937185451,1.60643417,2616.7,2616.5,2.94040226]
[1723937185834,1.60643417,2616.6,2616.5,2.94040226]
[1723937186212,1.60643417,2616.7,2616.5,2.94040226]
[1723937187061,1.60643417,2616.6,2616.5,2.94040226]
[1723937187553,1.60643417,2616.7,2616.5,2.94040226]
[1723937193898,1.60643417,2616.6,2616.5,2.94040226]
[1723937195071,2.92243417,2616.6,2616.5,0.07398226]
[1723937195574,2.92243417,2616.6,2616.5,2.94040226]
[1723937196175,2.92243417,2616.6,2616.5,0.07398226]
[1723937196873,2.92243417,2616.6,2616.5,2.94040226]
[1723937200078,2.92243417,2616.6,2616.5,0.07398226]
[1723937202147,1.80897155,2616.6,2616.5,0.07398226]
[1723937202441,4.18137155,2616.6,2616.0,2.86692]
[1723937202602,1.6059205,2616.4,2616.0,2.86692]
[1723937204146,1.6059205,2616.4,2616.2,2.86674]
[1723937205454,2.3662,2616.3,2615.8,5.86716]
[1723937205604,2.9219205,2615.9,2615.4,5.15554]
[1723937205806,2.9219205,2615.9,2615.3,2.86773]
[1723937205807,2.9219205,2615.7,2615.3,2.86773]
[1723937206058,1.6059205,2615.5,2615.1,2.86794]
[1723937206350,1.6059205,2615.4,2615.1,2.86794]
[1723937206502,2.00730709,2615.6,2614.9,2.86808]
[1723937206503,3.6822,2615.5,2614.9,2.86808]
[1723937206697,1.316,2615.1,2614.8,2.8682]
[1723937206928,1.316,2614.9,2614.6,2.288]
[1723937207130,1.316,2614.9,2614.3,1.20365887]
[1723937207131,1.316,2614.9,2614.5,2.86861]
[1723937207747,1.316,2614.9,2614.3,5.15682]
[1723937207951,1.316,2614.7,2614.4,2.86871]
[1723937208112,1.316,2614.7,2614.2,2.86894]
[1723937208318,1.316,2614.7,2614.0,5.15713]
[1723937208319,1.316,2614.7,2614.1,2.86903]
[1723937208713,1.316,2614.7,2614.0,2.288]
[1723937208714,1.316,2614.5,2614.0,2.288]
[1723937208956,1.316,2614.5,2614.0,2.86915]
[1723937209394,1.316,2614.5,2614.1,0.06702401]
[1723937210886,1.316,2614.5,2614.1,3.06702401]
[1723937211197,1.316,2614.3,2614.1,0.06702401]
[1723937211495,1.316,2614.3,2613.6,2.86959]
[1723937211698,1.316,2614.1,2613.6,2.86959]
[1723937212615,1.316,2614.1,2613.7,3.0]
[1723937213462,1.316,2614.1,2613.5,5.86971]
[1723937219287,6.55127,2614.1,2613.5,3.0]
[1723937219601,6.55127,2614.1,2613.4,3.0]
[1723937219602,1.316,2613.9,2613.4,3.0]
[1723937221352,1.316,2613.9,2613.4,5.86981]
[1723937224095,25.18527,2614.1,2613.4,5.86981]
[1723937224271,1.316,2614.0,2613.4,5.86981]
[1723937224481,1.316,2613.8,2613.4,3.0]
[1723937224698,1.734526,2613.8,2613.3,3.0]
[1723937225003,1.316,2613.6,2613.3,3.0]
[1723937225564,1.316,2613.6,2613.4,0.04405187]
[1723937229673,4.8750406,2613.6,2613.2,3.0]
[1723937230013,4.8750406,2613.6,2612.9,2.87036]
[1723937230014,1.316,2613.4,2612.9,2.87036]
[1723937230174,1.80350406,2613.4,2612.9,2.87036]
[1723937231588,1.80350406,2613.4,2613.0,3.0]
[1723937232496,2.49,2613.3,2613.0,3.0]
[1723937234171,2.49,2613.3,2613.0,5.87025]
[1723937235271,2.49,2613.3,2613.1,2.87014]
[1723937235476,23.756,2613.7,2613.1,2.87014]
[1723937235713,24.51551498,2613.7,2613.2,2.87004]
[1723937238319,19.95,2613.7,2613.4,2.86972]
[1723937238523,19.95,2613.7,2613.5,2.8697]
[1723937240724,19.95,2613.7,2613.6,0.04420868]
[1723937241681,21.266,2613.8,2613.6,0.04420868]
[1723937244216,19.95,2613.8,2613.6,2.91380868]
[1723937244525,19.95,2613.8,2613.7,2.86949]
[1723937244893,19.95,2613.8,2613.7,2.91364259]
[1723937247193,19.95,2613.9,2613.8,2.86938]
[1723937247396,2.4897,2614.5,2614.1,2.86897]
[1723937247598,1.316,2614.7,2614.3,2.8688]
[1723937248011,1.316,2614.7,2614.4,0.04405167]
[1723937249512,2.4897,2614.8,2614.4,0.04405167]
[1723937249717,1.316,2614.6,2614.4,0.04405167]
[1723937250628,1.316,2614.6,2614.4,2.91277167]
[1723937251133,1.316,2614.6,2614.4,0.04405167]
[1723937251297,1.316,2614.6,2614.2,2.86887]
[1723937251630,1.316,2614.6,2614.5,0.04396527]
[1723937251927,1.316,2614.6,2614.5,0.04395012]
[1723937252082,1.316,2614.6,2614.2,2.86887]
[1723937252286,1.316,2614.6,2614.5,0.04395012]
[1723937252485,1.316,2614.6,2614.2,2.86889]
[1723937252786,1.316,2614.6,2614.5,0.04395391]
[1723937252987,1.316,2614.6,2614.4,2.86871]
[1723937253183,1.316,2614.6,2614.5,0.04384024]
[1723937255182,1.316,2614.6,2614.5,2.91245024]
[1723937255391,19.95,2615.0,2614.6,2.86841]
[1723937255639,21.266,2615.0,2614.6,2.86841]
[1723937256002,21.266,2615.0,2614.7,0.04379437]
[1723937256203,21.266,2615.0,2614.6,2.86841]
[1723937256537,1.316,2614.8,2614.3,2.86882]
[1723937256728,1.316,2614.8,2614.4,3.0]
[1723937256932,1.316,2614.8,2614.7,0.04379437]
[1723937257132,2.83050092,2614.8,2614.4,3.0]
[1723937257429,1.316,2614.8,2614.4,5.86872]
[1723937258715,2.4897,2614.7,2614.4,5.86872]
[1723937260199,19.95,2614.9,2614.4,5.86872]
[1723937260745,21.266,2614.9,2614.4,5.86872]
[1723937260909,24.8541822,2614.9,2614.5,0.04379479]
[1723937261104,24.8541822,2614.9,2614.4,5.86872]
[1723937263714,24.8541822,2614.9,2614.5,2.8686]
[1723937264145,24.8541822,2614.9,2614.4,5.86872]
[1723937264146,24.8541822,2614.9,2614.6,2.86847]
[1723937264509,21.266,2614.9,2614.7,2.86838]
[1723937264851,21.266,2614.9,2614.7,2.91066119]
[1723937265404,1.316,2614.9,2614.7,2.91066119]
[1723937265656,1.316,2614.9,2614.7,0.04228119]
[1723937265809,4.6173792,2614.9,2614.7,0.04228119]
[1723937266009,4.6173792,2614.9,2614.5,2.86855]
[1723937266252,4.6173792,2614.9,2614.8,0.04226111]
[1723937266455,4.6173792,2614.9,2614.5,2.86855]
[1723937266810,3.6047,2614.7,2614.6,0.04228235]
[1723937267165,3.6047,2614.7,2614.2,2.86893]
[1723937267324,1.316,2614.5,2614.3,0.04092116]
[1723937267654,1.316,2614.5,2614.2,2.86893]
[1723937268225,1.316,2614.5,2614.3,0.04092116]
[1723937268542,1.316,2614.5,2614.2,2.86893]
[1723937268915,1.316,2614.5,2614.4,0.04091053]
[1723937269122,1.316,2614.5,2614.2,2.86893]
[1723937269515,1.316,2614.5,2614.4,0.04091053]
[1723937269853,1.316,2614.5,2614.2,2.86893]
[1723937270446,1.316,2614.5,2614.3,0.04092116]
[1723937271035,1.316,2614.5,2614.2,2.86893]
[1723937271563,1.316,2614.5,2614.3,0.04092116]
[1723937271722,1.316,2614.5,2614.2,2.86893]
[1723937272142,1.316,2614.5,2614.3,0.04092116]
[1723937272509,1.316,2614.5,2614.2,2.86893]
[1723937272861,1.316,2614.5,2614.3,0.04092116]
[1723937273064,19.95,2614.6,2614.3,0.04092116]
[1723937273244,19.95,2614.6,2614.5,2.86861]
[1723937273814,19.95,2614.6,2614.5,5.77814454]
[1723937274044,19.95,2614.6,2614.5,8.77814454]
[1723937275878,19.95,2614.6,2614.5,3.04092454]
[1723937277324,1.316,2614.7,2614.5,3.04092454]
[1723937277530,1.316,2614.7,2614.5,3.0]
[1723937279037,1.316,2614.7,2614.5,5.8686]
[1723937283455,19.95,2614.6,2614.5,5.8686]
[1723937283849,19.95,2614.6,2614.5,5.90954159]
[1723937284054,19.95,2614.6,2614.5,5.8686]
[1723937284366,19.95,2614.6,2614.5,8.38060825]
[1723937284566,19.95,2614.6,2614.5,11.24921825]
[1723937287380,19.95,2614.6,2614.5,5.90870825]
[1723937287760,19.95,2614.6,2614.5,8.77731825]
[1723937288861,19.95,2614.6,2614.5,5.90870825]
[1723937289086,19.95,2614.6,2614.5,8.77731825]
[1723937289283,19.95,2614.7,2614.6,2.8685]
[1723937289655,19.95,2614.7,2614.6,2.90853515]
[1723937297084,19.95,2614.7,2614.6,11.21353515]
[1723937297435,19.95,2614.9,2614.8,5.73656]
[1723937297621,19.95,2614.9,2614.8,5.77656444]
[1723937301217,19.95,2615.0,2614.9,2.86817]
[1723937301619,19.95,2615.0,2614.9,2.90816382]
[1723937301952,15.1719205,2615.3,2615.1,2.86788]
[1723937301953,2.9219205,2615.3,2615.1,2.86788]
[1723937302147,1.316,2615.3,2615.1,2.86788]
[1723937302304,1.316,2615.3,2615.2,0.03996196]
[1723937302510,1.316,2615.3,2615.0,2.86805]
[1723937302711,1.316,2615.3,2615.2,0.03996196]
[1723937302960,1.316,2615.3,2615.1,0.03997258]
[1723937303134,1.316,2615.3,2615.2,0.03996196]
[1723937303953,1.316,2615.3,2615.1,2.86786]
[1723937304170,1.316,2615.3,2615.2,0.03996196]
[1723937304531,1.316,2615.3,2615.0,2.86797]
[1723937304714,1.316,2615.3,2615.2,0.03996196]
[1723937304913,1.316,2615.3,2615.0,2.86797]
[1723937304914,1.316,2615.3,2615.1,0.03997258]
[1723937305113,1.316,2615.3,2615.2,2.90780196]
[1723937310862,1.316,2615.3,2615.2,0.03996196]
[1723937311063,1.316,2615.3,2615.1,2.86793]
[1723937311235,1.316,2615.3,2615.2,0.03978777]
[1723937313034,21.266,2615.3,2615.2,0.03978777]
[1723937318373,23.78347205,2615.3,2615.2,0.03978777]
[1723937318551,23.78347205,2615.3,2614.9,5.86817]
[1723937318756,1.316,2615.1,2615.0,3.03982039]
[1723937321539,1.316,2615.1,2615.0,5.90788039]
[1723937326056,1.316,2615.1,2615.0,3.03982039]
[1723937328475,1.316,2615.1,2615.0,5.90788039]
[1723937331812,6.01624392,2615.1,2615.0,0.03982039]
[1723937331981,6.01624392,2615.1,2614.4,2.3731]
[1723937332176,2.92179853,2614.9,2614.5,0.03990945]
[1723937332690,2.92179853,2614.9,2614.6,2.86843]
[1723937332691,1.316,2614.9,2614.6,2.86843]
[1723937332882,2.92179853,2614.9,2614.6,2.86843]
[1723937333093,2.92179853,2614.9,2614.7,0.03988821]
[1723937333414,1.316,2614.9,2614.7,0.03988821]
[1723937333925,1.316,2614.9,2614.7,5.90826821]
[1723937334281,1.316,2614.9,2614.7,5.90819821]
[1723937335386,1.316,2614.9,2614.7,8.77650821]
[1723937335580,1.316,2614.9,2614.7,5.90819821]
[1723937339256,1.316,2614.9,2614.7,8.77650821]
[1723937339427,1.316,2614.9,2614.7,8.79287056]
[1723937340847,1.316,2614.9,2614.8,2.86828]
[1723937341051,1.60579853,2615.1,2615.0,2.86806]
[1723937341214,1.60579853,2615.2,2615.1,2.86795]
[1723937341604,1.60579853,2615.2,2615.1,2.91399428]
[1723937341804,3.32326283,2615.3,2615.1,0.04604428]
[1723937342104,2.00726283,2615.2,2615.1,0.04604428]
[1723937342303,3.32326283,2615.3,2615.1,0.04604428]
[1723937342625,1.60645504,2615.2,2615.1,2.91399428]
[1723937342806,1.60645504,2615.2,2615.1,0.04604428]
[1723937344655,2.92245504,2615.3,2615.1,2.91399428]
[1723937344797,1.60645504,2615.2,2615.1,2.91399428]
[1723937345516,2.92245504,2615.3,2615.1,2.91399428]
[1723937345718,1.60645504,2615.2,2615.1,2.91399428]
[1723937345947,2.92245504,2615.3,2615.1,0.04604428]
[1723937346161,1.60645504,2615.2,2615.1,0.04604428]
[1723937346375,1.60645504,2615.2,2615.0,2.86799]
[1723937346860,1.316,2615.1,2615.0,2.86799]
[1723937351422,1.316,2615.1,2614.8,2.86824]
[1723937351622,2.92245504,2615.1,2614.8,2.86824]
[1723937351824,1.316,2615.1,2614.8,5.73643]
[1723937352028,1.316,2615.1,2614.9,2.86816]
[1723937352228,1.316,2615.1,2614.8,2.86819]
[1723937352638,2.92245504,2615.1,2614.8,2.86819]
[1723937353277,1.316,2615.1,2614.8,2.86819]
[1723937353581,1.316,2614.9,2614.7,3.0]
[1723937355893,1.316,2614.9,2614.7,5.86839]
[1723937357248,1.316,2614.9,2614.4,2.86865]
[1723937357446,2.92245504,2614.7,2614.2,2.86887]
[1723937357789,22.87245504,2614.7,2614.2,2.86887]
[1723937358087,1.60645504,2614.6,2614.2,2.86887]
[1723937359089,1.60645504,2614.6,2614.3,3.0]
[1723937359408,1.60645504,2614.6,2614.3,3.04233242]
[1723937359559,22.87245504,2614.7,2614.3,3.04233242]
[1723937359767,25.7317908,2614.7,2614.3,3.04233242]
[1723937360080,25.7317908,2614.7,2614.3,5.91115242]
[1723937360448,21.55645504,2614.7,2614.5,2.86854]
[1723937360644,19.95,2614.7,2614.5,2.86854]
[1723937360869,19.95,2614.7,2614.6,0.04236123]
[1723937362247,21.266,2614.7,2614.6,0.04236123]
[1723937363753,1.316,2614.7,2614.6,0.04236123]
[1723937366165,1.316,2614.7,2614.5,2.86854]
[1723937368094,1.316,2614.7,2614.4,2.86872]
[1723937368303,1.316,2614.7,2614.6,0.03640294]
[1723937368449,2.477,2614.6,2614.3,3.0]
[1723937369181,2.92245504,2614.7,2614.4,5.14161]
[1723937369385,1.316,2614.7,2614.4,5.14161]
[1723937370716,1.316,2614.7,2614.5,2.86861]
[1723937371021,21.266,2614.9,2614.5,2.86861]
[1723937371370,22.87245504,2614.9,2614.5,2.86861]
[1723937372279,23.51966649,2614.9,2614.5,2.86861]
[1723937373596,21.91321145,2614.9,2614.5,2.86861]
[1723937373971,23.51966649,2614.9,2614.4,5.14161]
[1723937374167,23.51966649,2614.9,2614.4,8.01024]
[1723937374881,23.51966649,2614.9,2614.5,2.8686]
[1723937375714,23.51966649,2614.9,2614.6,0.03637048]
[1723937378522,1.60645504,2614.8,2614.6,0.03637048]
[1723937378708,23.51966649,2614.9,2614.4,5.14161]
[1723937378919,1.60645504,2614.8,2614.7,0.03635704]
[1723937379100,4.89811683,2614.8,2614.4,5.14161]
[1723937379434,1.60645504,2614.8,2614.7,0.03635704]
[1723937379600,1.60645504,2614.8,2614.4,5.14161]
[1723937379805,1.60645504,2614.8,2614.4,2.86861]
[1723937380003,1.60645504,2614.8,2614.5,0.03638386]
[1723937380315,1.316,2614.7,2614.5,0.03638386]
[1723937398441,2.92245504,2614.7,2614.5,0.03638386]
[1723937400718,1.60645504,2614.6,2614.5,0.03638386]
[1723937401044,2.92245504,2614.7,2614.5,0.03638386]
[1723937401428,8.27840675,2614.7,2614.5,0.03638386]
[1723937401600,1.60800904,2614.6,2614.5,0.03638386]
[1723937401800,1.60801762,2614.6,2614.5,0.03638386]
[1723937404573,1.60801762,2614.7,2614.5,0.03638386]
[1723937404857,1.60801762,2614.6,2614.5,0.03638386]
[1723937405150,2.4896624,2614.7,2614.5,0.03638386]
[1723937405528,1.60801762,2614.6,2614.5,0.03638386]
[1723937411662,6.51991621,2614.7,2614.5,0.03638386]
[1723937411864,4.42606305,2614.6,2614.5,0.03638386]
[1723937412166,2.41579162,2614.6,2614.5,0.03638386]
[1723937412461,4.42627269,2614.6,2614.5,0.03638386]
[1723937413040,4.02404222,2614.6,2614.5,0.03638386]
[1723937413239,1.60821832,2614.6,2614.5,0.03638386]
[1723937414129,1.60821638,2614.6,2614.5,0.03638386]
[1723937415572,1.60821638,2614.6,2614.5,0.04616242]
[1723937418342,1.60821638,2614.6,2614.4,1.91245]
[1723937418567,1.60821638,2614.6,2614.5,0.04231555]
[1723937418748,1.60821638,2614.6,2614.4,1.91245]
[1723937422882,1.60821638,2614.6,2614.5,0.04230133]
[1723937423378,1.60821638,2614.6,2614.4,1.91245]
[1723937435388,3.13971847,2614.6,2614.3,3.0]
[1723937435548,4.1016229,2614.5,2614.2,1.91261]
[1723937435748,6.9925913,2614.5,2614.4,0.04230515]
[1723937436051,6.9925913,2614.5,2614.2,1.91261]
[1723937436252,6.9925913,2614.5,2614.3,0.04232316]
[1723937436564,6.9925913,2614.5,2614.2,1.91261]
[1723937436769,6.9925913,2614.5,2614.4,0.04230988]
[1723937436979,6.9925913,2614.5,2614.2,1.91261]
[1723937437285,6.9925913,2614.5,2614.3,0.04232316]
[1723937437490,6.9925913,2614.5,2614.2,1.91261]
[1723937437785,6.9925913,2614.5,2614.3,0.04232316]
[1723937438149,6.9925913,2614.5,2614.2,1.91261]
[1723937438460,4.1016229,2614.5,2614.4,0.04230988]
[1723937438664,4.1016229,2614.5,2614.2,1.91261]
[1723937438843,1.6086229,2614.5,2614.3,0.04232316]